[Event "Titled Tuesday Blitz February 21 Late 2023"]
[White "Roman, Rodrigo"]
[Black "Vargas, Mauricio"]
[WhiteFideId "3701220"]
[BlackFideId "4404572"]
[WhiteElo "2058"]
[BlackElo "2035"]
[Result "1-0"]
[Round "09"]
[TimeControl "180+2"]
[Date "2023.02.21"]
[WhiteClock "0:01:10"]
[BlackClock "0:00:02"]

1. e4 {[%clk 0:03:00]}  d6 {[%clk 0:02:12]} 2. d4 {[%clk 0:02:55]}  c6 {[%clk 0:02:12]} 3. Nc3 {[%clk 0:02:48]}  g6 {[%clk 0:02:10]} 4. h3 {[%clk 0:02:47]}  Bg7 {[%clk 0:02:10]} 5. Nf3 {[%clk 0:02:46]}  b6 {[%clk 0:02:05]} 6. Bf4 {[%clk 0:02:44]}  Bb7 {[%clk 0:02:05]} 7. Qd2 {[%clk 0:02:44]}  Nd7 {[%clk 0:02:05]} 8. h4 {[%clk 0:02:43]}  Qc7 {[%clk 0:02:02]} 9. h5 {[%clk 0:02:43]}  h6 {[%clk 0:01:57]} 10. hxg6 {[%clk 0:02:41]}  fxg6 {[%clk 0:01:56]} 11. O-O-O {[%clk 0:02:39]}  g5 {[%clk 0:01:55]} 12. Be3 {[%clk 0:02:34]}  O-O-O {[%clk 0:01:55]} 13. Kb1 {[%clk 0:02:31]}  a6 {[%clk 0:01:43]} 14. g3 {[%clk 0:02:30]}  b5 {[%clk 0:01:41]} 15. a3 {[%clk 0:02:28]}  Kb8 {[%clk 0:01:39]} 16. Bg2 {[%clk 0:02:27]}  Ka8 {[%clk 0:01:39]} 17. Nh2 {[%clk 0:02:00]}  Nb6 {[%clk 0:01:37]} 18. b3 {[%clk 0:01:59]}  Nf6 {[%clk 0:01:26]} 19. f4 {[%clk 0:01:58]}  gxf4 {[%clk 0:01:18]} 20. gxf4 {[%clk 0:01:58]}  a5 {[%clk 0:01:12]} 21. e5 {[%clk 0:01:55]}  Nfd5 {[%clk 0:01:05]} 22. Nxd5 {[%clk 0:01:55]}  Nxd5 {[%clk 0:01:03]} 23. Bxd5 {[%clk 0:01:54]}  cxd5 {[%clk 0:01:02]} 24. Ng4 {[%clk 0:01:48]}  h5 {[%clk 0:00:56]} 25. Nf2 {[%clk 0:01:45]}  Rc8 {[%clk 0:00:38]} 26. Qe2 {[%clk 0:01:43]}  Ba6 {[%clk 0:00:33]} 27. Nd3 {[%clk 0:01:39]}  Kb7 {[%clk 0:00:32]} 28. Rd2 {[%clk 0:01:38]}  b4 {[%clk 0:00:26]} 29. axb4 {[%clk 0:01:38]}  Ka7 {[%clk 0:00:19]} 30. Qd1 {[%clk 0:01:32]}  axb4 {[%clk 0:00:16]} 31. Nxb4 {[%clk 0:01:29]}  Qc3 {[%clk 0:00:13]} 32. Nxa6 {[%clk 0:01:28]}  Qxe3 {[%clk 0:00:11]} 33. Rd3 {[%clk 0:01:22]}  Qxf4 {[%clk 0:00:10]} 34. Nb4 {[%clk 0:01:18]}  dxe5 {[%clk 0:00:10]} 35. Nxd5 {[%clk 0:01:16]}  Qe4 {[%clk 0:00:06]} 36. dxe5 {[%clk 0:01:12]}  Bxe5 {[%clk 0:00:06]} 37. Re1 {[%clk 0:01:11]}  Qf5 {[%clk 0:00:02]} 38. Nxe7 {[%clk 0:01:10]} 1-0


[Site "https://www.chess.com"]

[Event "Titled Tuesday Blitz February 21 Late 2023"]
[White "Tabatabaei, M. Amin"]
[Black "Nakamura, Hikaru"]
[WhiteFideId "12521213"]
[BlackFideId "2016192"]
[WhiteElo "2677"]
[BlackElo "2775"]
[Result "1/2-1/2"]
[Round "10"]
[TimeControl "180+2"]
[Date "2023.02.21"]
[WhiteClock "0:00:03"]
[BlackClock "0:00:06"]

1. d4 {[%clk 0:03:00]}  d6 {[%clk 0:02:52]} 2. e4 {[%clk 0:03:00]}  f5 {[%clk 0:02:50]} 3. Nc3 {[%clk 0:03:00]}  Nf6 {[%clk 0:02:50]} 4. Bd3 {[%clk 0:02:57]}  fxe4 {[%clk 0:02:50]} 5. Nxe4 {[%clk 0:02:58]}  Nxe4 {[%clk 0:02:51]} 6. Bxe4 {[%clk 0:02:59]}  g6 {[%clk 0:02:51]} 7. h4 {[%clk 0:02:57]}  d5 {[%clk 0:02:46]} 8. Bd3 {[%clk 0:02:57]}  Bg7 {[%clk 0:02:45]} 9. h5 {[%clk 0:02:55]}  Qd6 {[%clk 0:02:45]} 10. c3 {[%clk 0:02:49]}  Rf8 {[%clk 0:02:04]} 11. hxg6 {[%clk 0:02:32]}  hxg6 {[%clk 0:02:05]} 12. Nf3 {[%clk 0:02:32]}  Bf5 {[%clk 0:01:59]} 13. Rh7 {[%clk 0:02:05]}  Bf6 {[%clk 0:01:58]} 14. Bxf5 {[%clk 0:01:56]}  gxf5 {[%clk 0:01:58]} 15. Qe2 {[%clk 0:01:54]}  Nd7 {[%clk 0:01:45]} 16. g3 {[%clk 0:01:55]}  O-O-O {[%clk 0:01:40]} 17. Bf4 {[%clk 0:01:55]}  Qc6 {[%clk 0:01:25]} 18. O-O-O {[%clk 0:01:54]}  Rh8 {[%clk 0:01:23]} 19. Rdh1 {[%clk 0:01:53]}  Rxh7 {[%clk 0:01:23]} 20. Rxh7 {[%clk 0:01:54]}  Nf8 {[%clk 0:01:23]} 21. Rh5 {[%clk 0:01:45]}  Ne6 {[%clk 0:01:13]} 22. Be5 {[%clk 0:01:35]}  Ng7 {[%clk 0:00:53]} 23. Rh7 {[%clk 0:01:16]}  Rg8 {[%clk 0:00:53]} 24. Bxf6 {[%clk 0:01:10]}  Qxf6 {[%clk 0:00:54]} 25. Ne5 {[%clk 0:01:08]}  c6 {[%clk 0:00:51]} 26. Qe3 {[%clk 0:00:58]}  Ne8 {[%clk 0:00:33]} 27. Qf4 {[%clk 0:00:50]}  Nd6 {[%clk 0:00:31]} 28. a4 {[%clk 0:00:42]}  a5 {[%clk 0:00:30]} 29. Kb1 {[%clk 0:00:41]}  Qf8 {[%clk 0:00:16]} 30. Ka2 {[%clk 0:00:30]}  Qf6 {[%clk 0:00:16]} 31. Kb3 {[%clk 0:00:28]}  Ne4 {[%clk 0:00:13]} 32. Rh6 {[%clk 0:00:23]}  Qg5 {[%clk 0:00:13]} 33. Qxg5 {[%clk 0:00:15]}  Rxg5 {[%clk 0:00:14]} 34. Rh8+ {[%clk 0:00:11]}  Kc7 {[%clk 0:00:14]} 35. Rh7 {[%clk 0:00:11]}  Nxf2 {[%clk 0:00:14]} 36. Rxe7+ {[%clk 0:00:12]}  Kc8 {[%clk 0:00:15]} 37. Re8+ {[%clk 0:00:11]}  Kc7 {[%clk 0:00:16]} 38. Re7+ {[%clk 0:00:11]}  Kc8 {[%clk 0:00:10]} 39. Re8+ {[%clk 0:00:08]}  Kc7 {[%clk 0:00:06]} 40. Re7+ {[%clk 0:00:03]} 1/2-1/2


[Site "https://www.chess.com"]

[Event "Titled Tuesday Blitz February 21 Late 2023"]
[White "Zhigalko, Sergei"]
[Black "Caruana, Fabiano"]
[WhiteFideId "13502956"]
[BlackFideId "2020009"]
[WhiteElo "2572"]
[BlackElo "2764"]
[Result "0-1"]
[Round "10"]
[TimeControl "180+2"]
[Date "2023.02.21"]
[WhiteClock "0:00:04"]
[BlackClock "0:00:09"]

1. e4 {[%clk 0:03:00]}  e5 {[%clk 0:02:58]} 2. Nf3 {[%clk 0:03:01]}  Nc6 {[%clk 0:02:59]} 3. Bc4 {[%clk 0:03:01]}  Nf6 {[%clk 0:03:00]} 4. d3 {[%clk 0:03:01]}  Bc5 {[%clk 0:03:00]} 5. O-O {[%clk 0:03:01]}  d6 {[%clk 0:02:59]} 6. Nbd2 {[%clk 0:03:02]}  a5 {[%clk 0:02:58]} 7. c3 {[%clk 0:03:02]}  O-O {[%clk 0:02:58]} 8. h3 {[%clk 0:03:01]}  Ba7 {[%clk 0:02:54]} 9. Re1 {[%clk 0:03:00]}  Ne7 {[%clk 0:02:49]} 10. Nf1 {[%clk 0:02:58]}  c6 {[%clk 0:02:45]} 11. Ng3 {[%clk 0:02:58]}  b5 {[%clk 0:02:45]} 12. Bb3 {[%clk 0:02:58]}  a4 {[%clk 0:02:45]} 13. Bc2 {[%clk 0:02:58]}  Ng6 {[%clk 0:02:46]} 14. d4 {[%clk 0:02:58]}  h6 {[%clk 0:02:44]} 15. Be3 {[%clk 0:02:58]}  Be6 {[%clk 0:02:42]} 16. Qd2 {[%clk 0:02:57]}  Re8 {[%clk 0:02:38]} 17. a3 {[%clk 0:02:45]}  Qe7 {[%clk 0:02:20]} 18. Rad1 {[%clk 0:02:44]}  Qf8 {[%clk 0:02:16]} 19. Qc1 {[%clk 0:02:34]}  Rad8 {[%clk 0:02:01]} 20. Qb1 {[%clk 0:01:58]}  Bb8 {[%clk 0:01:57]} 21. Qc1 {[%clk 0:01:51]}  d5 {[%clk 0:01:39]} 22. dxe5 {[%clk 0:01:40]}  Nxe4 {[%clk 0:00:57]} 23. Bxe4 {[%clk 0:01:23]}  dxe4 {[%clk 0:00:58]} 24. Nxe4 {[%clk 0:01:24]}  Rxd1 {[%clk 0:00:53]} 25. Rxd1 {[%clk 0:01:25]}  Rd8 {[%clk 0:00:48]} 26. Bc5 {[%clk 0:01:23]}  Rxd1+ {[%clk 0:00:44]} 27. Qxd1 {[%clk 0:01:24]}  Qe8 {[%clk 0:00:45]} 28. Nd6 {[%clk 0:01:03]}  Qd7 {[%clk 0:00:41]} 29. Qd4 {[%clk 0:01:00]}  Bd5 {[%clk 0:00:41]} 30. Nh2 {[%clk 0:00:54]}  f6 {[%clk 0:00:38]} 31. f4 {[%clk 0:00:24]}  fxe5 {[%clk 0:00:33]} 32. fxe5 {[%clk 0:00:25]}  Qe6 {[%clk 0:00:32]} 33. Ng4 {[%clk 0:00:14]}  h5 {[%clk 0:00:32]} 34. Ne3 {[%clk 0:00:14]}  Nxe5 {[%clk 0:00:28]} 35. Ndf5 {[%clk 0:00:09]}  Kh7 {[%clk 0:00:20]} 36. Nxd5 {[%clk 0:00:06]}  Qxf5 {[%clk 0:00:15]} 37. Ne3 {[%clk 0:00:02]}  Qg6 {[%clk 0:00:14]} 38. Qd1 {[%clk 0:00:01]}  Nd3 {[%clk 0:00:13]} 39. Bd4 {[%clk 0:00:01]}  Nxb2 {[%clk 0:00:12]} 40. Qe2 {[%clk 0:00:01]}  Nd3 {[%clk 0:00:12]} 41. Kh1 {[%clk 0:00:01]}  Nf4 {[%clk 0:00:12]} 42. Qd1 {[%clk 0:00:02]}  Bd6 {[%clk 0:00:12]} 43. c4 {[%clk 0:00:01]}  Bxa3 {[%clk 0:00:11]} 44. cxb5 {[%clk 0:00:02]}  cxb5 {[%clk 0:00:12]} 45. Be5 {[%clk 0:00:02]}  Nd3 {[%clk 0:00:10]} 46. Qe2 {[%clk 0:00:01]}  Nxe5 {[%clk 0:00:10]} 47. Nd5 {[%clk 0:00:02]}  Bd6 {[%clk 0:00:10]} 48. Nf4 {[%clk 0:00:02]}  Qf5 {[%clk 0:00:10]} 49. Nxh5 {[%clk 0:00:02]}  Ng6 {[%clk 0:00:10]} 50. g4 {[%clk 0:00:02]}  Qb1+ {[%clk 0:00:09]} 51. Kg2 {[%clk 0:00:03]}  Nf4+ {[%clk 0:00:08]} 52. Nxf4 {[%clk 0:00:03]}  Bxf4 {[%clk 0:00:09]} 53. Qxb5 {[%clk 0:00:03]}  Qxb5 {[%clk 0:00:09]} 54. Kf3 {[%clk 0:00:04]}  a3 {[%clk 0:00:09]} 0-1


[Site "https://www.chess.com"]

[Event "Titled Tuesday Blitz February 21 Late 2023"]
[White "Paravyan, David"]
[Black "Andreikin, Dmitry"]
[WhiteFideId "4194985"]
[BlackFideId "4158814"]
[WhiteElo "2601"]
[BlackElo "2729"]
[Result "0-1"]
[Round "10"]
[TimeControl "180+2"]
[Date "2023.02.21"]
[WhiteClock "0:00:01"]
[BlackClock "0:00:07"]

1. e4 {[%clk 0:03:00]}  c5 {[%clk 0:03:00]} 2. Nf3 {[%clk 0:03:01]}  e6 {[%clk 0:02:59]} 3. d4 {[%clk 0:03:01]}  cxd4 {[%clk 0:03:00]} 4. Nxd4 {[%clk 0:03:02]}  Nc6 {[%clk 0:03:01]} 5. Nc3 {[%clk 0:02:59]}  a6 {[%clk 0:02:59]} 6. Be2 {[%clk 0:02:55]}  Nf6 {[%clk 0:02:57]} 7. Nxc6 {[%clk 0:02:55]}  bxc6 {[%clk 0:02:56]} 8. e5 {[%clk 0:02:55]}  Nd5 {[%clk 0:02:53]} 9. Ne4 {[%clk 0:02:55]}  Qc7 {[%clk 0:02:44]} 10. f4 {[%clk 0:02:53]}  Qb6 {[%clk 0:02:30]} 11. Bd3 {[%clk 0:01:53]}  Nb4 {[%clk 0:02:14]} 12. Qe2 {[%clk 0:01:48]}  c5 {[%clk 0:01:54]} 13. Be3 {[%clk 0:01:43]}  Qc6 {[%clk 0:01:44]} 14. Ng5 {[%clk 0:01:14]}  Nxd3+ {[%clk 0:01:42]} 15. cxd3 {[%clk 0:01:10]}  Bb7 {[%clk 0:01:28]} 16. O-O {[%clk 0:01:11]}  Be7 {[%clk 0:01:23]} 17. f5 {[%clk 0:01:08]}  h6 {[%clk 0:00:53]} 18. Nh3 {[%clk 0:00:49]}  exf5 {[%clk 0:00:41]} 19. Rxf5 {[%clk 0:00:50]}  Qe6 {[%clk 0:00:39]} 20. Raf1 {[%clk 0:00:48]}  O-O {[%clk 0:00:37]} 21. b3 {[%clk 0:00:35]}  Rae8 {[%clk 0:00:36]} 22. Qg4 {[%clk 0:00:31]}  Qg6 {[%clk 0:00:36]} 23. Qxg6 {[%clk 0:00:16]}  fxg6 {[%clk 0:00:36]} 24. Rxf8+ {[%clk 0:00:17]}  Bxf8 {[%clk 0:00:36]} 25. Nf4 {[%clk 0:00:13]}  Kh7 {[%clk 0:00:24]} 26. e6 {[%clk 0:00:08]}  dxe6 {[%clk 0:00:22]} 27. Rc1 {[%clk 0:00:08]}  e5 {[%clk 0:00:21]} 28. Ne2 {[%clk 0:00:08]}  Rd8 {[%clk 0:00:13]} 29. Bxc5 {[%clk 0:00:04]}  Bxc5+ {[%clk 0:00:13]} 30. Rxc5 {[%clk 0:00:05]}  Rxd3 {[%clk 0:00:14]} 31. Rxe5 {[%clk 0:00:06]}  Rd2 {[%clk 0:00:14]} 32. a4 {[%clk 0:00:04]}  Rb2 {[%clk 0:00:14]} 33. Re3 {[%clk 0:00:02]}  Bd5 {[%clk 0:00:14]} 34. g3 {[%clk 0:00:01]}  Bxb3 {[%clk 0:00:13]} 35. a5 {[%clk 0:00:02]}  Bc4 {[%clk 0:00:11]} 36. Nd4 {[%clk 0:00:02]}  Ra2 {[%clk 0:00:11]} 37. Re5 {[%clk 0:00:02]}  g5 {[%clk 0:00:10]} 38. Rc5 {[%clk 0:00:02]}  Bd3 {[%clk 0:00:10]} 39. Ne6 {[%clk 0:00:01]}  Kg6 {[%clk 0:00:10]} 40. Rc6 {[%clk 0:00:01]}  Kf5 {[%clk 0:00:07]} 0-1


[Site "https://www.chess.com"]

[Event "Titled Tuesday Blitz February 21 Late 2023"]
[White "Fedoseev, Vladimir"]
[Black "Sanal, Vahap"]
[WhiteFideId "24130737"]
[BlackFideId "6300545"]
[WhiteElo "2680"]
[BlackElo "2600"]
[Result "1-0"]
[Round "10"]
[TimeControl "180+2"]
[Date "2023.02.21"]
[WhiteClock "0:00:16"]
[BlackClock "0:00:10"]

1. e4 {[%clk 0:02:59]}  e5 {[%clk 0:02:54]} 2. Nf3 {[%clk 0:02:59]}  Nc6 {[%clk 0:02:53]} 3. Bb5 {[%clk 0:03:00]}  a6 {[%clk 0:02:54]} 4. Ba4 {[%clk 0:03:00]}  Nf6 {[%clk 0:02:54]} 5. O-O {[%clk 0:03:00]}  Nxe4 {[%clk 0:02:52]} 6. d4 {[%clk 0:02:59]}  b5 {[%clk 0:02:52]} 7. Bb3 {[%clk 0:02:59]}  d5 {[%clk 0:02:53]} 8. dxe5 {[%clk 0:02:59]}  Be6 {[%clk 0:02:53]} 9. c3 {[%clk 0:02:58]}  Be7 {[%clk 0:02:53]} 10. Bc2 {[%clk 0:02:55]}  O-O {[%clk 0:02:53]} 11. h3 {[%clk 0:02:54]}  f6 {[%clk 0:02:35]} 12. exf6 {[%clk 0:02:52]}  Bxf6 {[%clk 0:02:29]} 13. Be3 {[%clk 0:02:51]}  Qd7 {[%clk 0:02:27]} 14. Nbd2 {[%clk 0:02:39]}  Nxd2 {[%clk 0:02:27]} 15. Qxd2 {[%clk 0:02:38]}  Rae8 {[%clk 0:02:19]} 16. Rad1 {[%clk 0:02:35]}  Ne5 {[%clk 0:02:05]} 17. Nxe5 {[%clk 0:02:12]}  Bxe5 {[%clk 0:02:05]} 18. f4 {[%clk 0:02:13]}  Bf6 {[%clk 0:01:55]} 19. b4 {[%clk 0:01:26]}  Bf5 {[%clk 0:01:45]} 20. Bxf5 {[%clk 0:01:20]}  Qxf5 {[%clk 0:01:45]} 21. Bc5 {[%clk 0:01:17]}  Rf7 {[%clk 0:01:46]} 22. g4 {[%clk 0:01:14]}  Qd7 {[%clk 0:00:51]} 23. Qxd5 {[%clk 0:00:53]}  Qxd5 {[%clk 0:00:50]} 24. Rxd5 {[%clk 0:00:54]}  Bxc3 {[%clk 0:00:51]} 25. Rf3 {[%clk 0:00:54]}  Bf6 {[%clk 0:00:49]} 26. Ra3 {[%clk 0:00:41]}  Be7 {[%clk 0:00:39]} 27. f5 {[%clk 0:00:34]}  Rf6 {[%clk 0:00:25]} 28. Kg2 {[%clk 0:00:29]}  Kf8 {[%clk 0:00:11]} 29. Kf3 {[%clk 0:00:23]}  Rc6 {[%clk 0:00:10]} 30. Rc3 {[%clk 0:00:17]}  a5 {[%clk 0:00:10]} 31. Bxe7+ {[%clk 0:00:16]} 1-0


[Site "https://www.chess.com"]

[Event "Titled Tuesday Blitz February 21 Late 2023"]
[White "Kobo, Ori"]
[Black "Makarian, Rudik"]
[WhiteFideId "2812320"]
[BlackFideId "44105681"]
[WhiteElo "2559"]
[BlackElo "2545"]
[Result "0-1"]
[Round "10"]
[TimeControl "180+2"]
[Date "2023.02.21"]
[WhiteClock "0:00:04"]
[BlackClock "0:00:25"]

1. b3 {[%clk 0:03:00]}  d5 {[%clk 0:02:59]} 2. Bb2 {[%clk 0:03:01]}  Bg4 {[%clk 0:03:00]} 3. f3 {[%clk 0:03:00]}  Bd7 {[%clk 0:03:01]} 4. e3 {[%clk 0:02:50]}  Nf6 {[%clk 0:03:01]} 5. f4 {[%clk 0:02:49]}  g6 {[%clk 0:02:59]} 6. Nf3 {[%clk 0:02:47]}  Bg7 {[%clk 0:03:00]} 7. c4 {[%clk 0:02:45]}  dxc4 {[%clk 0:02:45]} 8. Bxc4 {[%clk 0:02:46]}  O-O {[%clk 0:02:46]} 9. O-O {[%clk 0:02:44]}  c5 {[%clk 0:02:46]} 10. Ne5 {[%clk 0:02:36]}  Nc6 {[%clk 0:02:46]} 11. Nc3 {[%clk 0:02:23]}  e6 {[%clk 0:02:41]} 12. Qf3 {[%clk 0:02:10]}  Rc8 {[%clk 0:02:19]} 13. Rad1 {[%clk 0:02:03]}  a6 {[%clk 0:02:07]} 14. Qh3 {[%clk 0:01:36]}  Qc7 {[%clk 0:02:03]} 15. Qh4 {[%clk 0:01:16]}  Ne7 {[%clk 0:01:51]} 16. g4 {[%clk 0:01:12]}  b5 {[%clk 0:01:46]} 17. Be2 {[%clk 0:01:12]}  Bc6 {[%clk 0:01:44]} 18. Bf3 {[%clk 0:00:54]}  Bxf3 {[%clk 0:01:21]} 19. Rxf3 {[%clk 0:00:55]}  h5 {[%clk 0:01:14]} 20. gxh5 {[%clk 0:00:41]}  Nf5 {[%clk 0:01:09]} 21. Qf2 {[%clk 0:00:38]}  b4 {[%clk 0:01:00]} 22. Ne2 {[%clk 0:00:32]}  Nxh5 {[%clk 0:01:00]} 23. Rh3 {[%clk 0:00:29]}  Rcd8 {[%clk 0:00:54]} 24. Ng3 {[%clk 0:00:20]}  Nf6 {[%clk 0:00:54]} 25. Qe2 {[%clk 0:00:10]}  Qb7 {[%clk 0:00:45]} 26. Rc1 {[%clk 0:00:09]}  Qd5 {[%clk 0:00:41]} 27. e4 {[%clk 0:00:08]}  Qxd2 {[%clk 0:00:41]} 28. exf5 {[%clk 0:00:07]}  exf5 {[%clk 0:00:39]} 29. Qxd2 {[%clk 0:00:06]}  Rxd2 {[%clk 0:00:40]} 30. Ba1 {[%clk 0:00:06]}  Rxa2 {[%clk 0:00:39]} 31. Nf1 {[%clk 0:00:06]}  Nd5 {[%clk 0:00:36]} 32. Rf3 {[%clk 0:00:05]}  Re8 {[%clk 0:00:36]} 33. Rxc5 {[%clk 0:00:03]}  Nxf4 {[%clk 0:00:36]} 34. Rxf4 {[%clk 0:00:03]}  Rxa1 {[%clk 0:00:37]} 35. Nf3 {[%clk 0:00:03]}  a5 {[%clk 0:00:35]} 36. Kg2 {[%clk 0:00:03]}  Re2+ {[%clk 0:00:31]} 37. Kg1 {[%clk 0:00:04]}  Bf6 {[%clk 0:00:29]} 38. Rfc4 {[%clk 0:00:04]}  Rb2 {[%clk 0:00:27]} 39. Rc2 {[%clk 0:00:03]}  Rxb3 {[%clk 0:00:27]} 40. Kg2 {[%clk 0:00:03]}  Rxf3 {[%clk 0:00:25]} 41. Kxf3 {[%clk 0:00:03]}  Rxf1+ {[%clk 0:00:26]} 42. Kg2 {[%clk 0:00:03]}  Ra1 {[%clk 0:00:25]} 43. Rc6 {[%clk 0:00:03]}  Kg7 {[%clk 0:00:25]} 44. Ra6 {[%clk 0:00:04]}  b3 {[%clk 0:00:25]} 45. Rc5 {[%clk 0:00:04]}  b2 {[%clk 0:00:25]} 0-1


[Site "https://www.chess.com"]

[Event "Titled Tuesday Blitz February 21 Late 2023"]
[White "Pichot, Alan"]
[Black "Kamsky, Gata"]
[WhiteFideId "110973"]
[BlackFideId "2000024"]
[WhiteElo "2638"]
[BlackElo "2665"]
[Result "0-1"]
[Round "10"]
[TimeControl "180+2"]
[Date "2023.02.21"]
[WhiteClock "0:00:09"]
[BlackClock "0:00:06"]

1. e4 {[%clk 0:03:00]}  e5 {[%clk 0:02:59]} 2. Nf3 {[%clk 0:03:01]}  Nc6 {[%clk 0:02:59]} 3. Bb5 {[%clk 0:03:01]}  a6 {[%clk 0:02:58]} 4. Ba4 {[%clk 0:03:02]}  Nf6 {[%clk 0:02:58]} 5. d3 {[%clk 0:03:02]}  d6 {[%clk 0:02:56]} 6. c3 {[%clk 0:03:00]}  g6 {[%clk 0:02:55]} 7. O-O {[%clk 0:03:00]}  Bg7 {[%clk 0:02:55]} 8. Re1 {[%clk 0:03:01]}  O-O {[%clk 0:02:55]} 9. Nbd2 {[%clk 0:03:01]}  b5 {[%clk 0:02:47]} 10. Bc2 {[%clk 0:03:00]}  Bb7 {[%clk 0:02:48]} 11. a4 {[%clk 0:02:57]}  Re8 {[%clk 0:02:42]} 12. Nf1 {[%clk 0:02:56]}  Nb8 {[%clk 0:02:33]} 13. Bg5 {[%clk 0:02:53]}  h6 {[%clk 0:02:32]} 14. Bh4 {[%clk 0:02:53]}  Nbd7 {[%clk 0:02:31]} 15. Ne3 {[%clk 0:02:53]}  Qb8 {[%clk 0:02:19]} 16. b4 {[%clk 0:02:46]}  c5 {[%clk 0:02:10]} 17. Bb3 {[%clk 0:02:41]}  Qc7 {[%clk 0:01:59]} 18. h3 {[%clk 0:02:14]}  Nb6 {[%clk 0:01:58]} 19. Bxf6 {[%clk 0:02:09]}  Bxf6 {[%clk 0:01:57]} 20. a5 {[%clk 0:02:09]}  Nd7 {[%clk 0:01:54]} 21. Bd5 {[%clk 0:02:08]}  Bg7 {[%clk 0:01:49]} 22. Qb3 {[%clk 0:02:08]}  Nf6 {[%clk 0:01:43]} 23. Rac1 {[%clk 0:02:02]}  Rac8 {[%clk 0:01:33]} 24. c4 {[%clk 0:01:48]}  Nxd5 {[%clk 0:00:59]} 25. cxd5 {[%clk 0:01:48]}  Qd8 {[%clk 0:00:57]} 26. Rc2 {[%clk 0:01:46]}  h5 {[%clk 0:00:52]} 27. Rec1 {[%clk 0:01:45]}  Bf8 {[%clk 0:00:52]} 28. Qb2 {[%clk 0:01:35]}  Qf6 {[%clk 0:00:49]} 29. Nd2 {[%clk 0:01:28]}  Rc7 {[%clk 0:00:46]} 30. Nb3 {[%clk 0:01:08]}  Rec8 {[%clk 0:00:45]} 31. Rc3 {[%clk 0:01:09]}  Qd8 {[%clk 0:00:34]} 32. Qc2 {[%clk 0:01:07]}  Qe7 {[%clk 0:00:33]} 33. g3 {[%clk 0:00:58]}  Ba8 {[%clk 0:00:29]} 34. h4 {[%clk 0:00:57]}  Bb7 {[%clk 0:00:29]} 35. Qe2 {[%clk 0:00:51]}  Qf6 {[%clk 0:00:27]} 36. R1c2 {[%clk 0:00:50]}  Be7 {[%clk 0:00:24]} 37. Qd1 {[%clk 0:00:47]}  Qg7 {[%clk 0:00:22]} 38. Qc1 {[%clk 0:00:46]}  Qf8 {[%clk 0:00:23]} 39. Kh2 {[%clk 0:00:45]}  Ba8 {[%clk 0:00:22]} 40. Nf1 {[%clk 0:00:35]}  f5 {[%clk 0:00:20]} 41. Nfd2 {[%clk 0:00:26]}  Bb7 {[%clk 0:00:18]} 42. Nf3 {[%clk 0:00:24]}  fxe4 {[%clk 0:00:17]} 43. dxe4 {[%clk 0:00:24]}  c4 {[%clk 0:00:17]} 44. Nbd2 {[%clk 0:00:24]}  Bf6 {[%clk 0:00:17]} 45. Nf1 {[%clk 0:00:23]}  Rf7 {[%clk 0:00:17]} 46. Kg1 {[%clk 0:00:21]}  Qe7 {[%clk 0:00:17]} 47. Qh6 {[%clk 0:00:19]}  Rg7 {[%clk 0:00:16]} 48. Ne1 {[%clk 0:00:16]}  Rf8 {[%clk 0:00:16]} 49. Rf3 {[%clk 0:00:16]}  Bc8 {[%clk 0:00:16]} 50. Nh2 {[%clk 0:00:15]}  Bd7 {[%clk 0:00:15]} 51. Ng2 {[%clk 0:00:13]}  Be8 {[%clk 0:00:15]} 52. Qe3 {[%clk 0:00:13]}  g5 {[%clk 0:00:14]} 53. hxg5 {[%clk 0:00:11]}  Bxg5 {[%clk 0:00:15]} 54. Rxf8+ {[%clk 0:00:11]}  Qxf8 {[%clk 0:00:13]} 55. Qb6 {[%clk 0:00:11]}  Bg6 {[%clk 0:00:12]} 56. f3 {[%clk 0:00:08]}  Rf7 {[%clk 0:00:11]} 57. Rf2 {[%clk 0:00:06]}  c3 {[%clk 0:00:07]} 58. Qc6 {[%clk 0:00:06]}  Bxe4 {[%clk 0:00:06]} 59. Qxc3 {[%clk 0:00:03]}  Bxd5 {[%clk 0:00:07]} 60. f4 {[%clk 0:00:03]}  exf4 {[%clk 0:00:06]} 61. gxf4 {[%clk 0:00:04]}  Bf6 {[%clk 0:00:06]} 62. Qd3 {[%clk 0:00:03]}  Bb7 {[%clk 0:00:06]} 63. Nf3 {[%clk 0:00:03]}  Rg7 {[%clk 0:00:06]} 64. Kh2 {[%clk 0:00:02]}  Qf7 {[%clk 0:00:04]} 65. Re2 {[%clk 0:00:02]}  Qg6 {[%clk 0:00:03]} 66. Qxg6 {[%clk 0:00:02]}  Rxg6 {[%clk 0:00:03]} 67. Ngh4 {[%clk 0:00:01]}  Bxh4 {[%clk 0:00:03]} 68. Nxh4 {[%clk 0:00:01]}  Rg4 {[%clk 0:00:04]} 69. Kh3 {[%clk 0:00:02]}  Rxf4 {[%clk 0:00:03]} 70. Re8+ {[%clk 0:00:02]}  Kf7 {[%clk 0:00:03]} 71. Rb8 {[%clk 0:00:03]}  Bc6 {[%clk 0:00:02]} 72. Rb6 {[%clk 0:00:03]}  Bd7+ {[%clk 0:00:03]} 73. Kg3 {[%clk 0:00:04]}  Rg4+ {[%clk 0:00:03]} 74. Kh3 {[%clk 0:00:04]}  Rxb4+ {[%clk 0:00:03]} 75. Kg3 {[%clk 0:00:05]}  Rg4+ {[%clk 0:00:04]} 76. Kh3 {[%clk 0:00:06]}  Ra4+ {[%clk 0:00:04]} 77. Kg3 {[%clk 0:00:07]}  Rxa5 {[%clk 0:00:05]} 78. Nf3 {[%clk 0:00:07]}  Ra3 {[%clk 0:00:04]} 79. Kf4 {[%clk 0:00:08]}  Ke7 {[%clk 0:00:04]} 80. Nd4 {[%clk 0:00:08]}  Ra4 {[%clk 0:00:05]} 81. Ke4 {[%clk 0:00:08]}  a5 {[%clk 0:00:05]} 82. Rb8 {[%clk 0:00:08]}  Rc4 {[%clk 0:00:05]} 83. Kd5 {[%clk 0:00:07]}  Rc5+ {[%clk 0:00:05]} 84. Ke4 {[%clk 0:00:08]}  Re5+ {[%clk 0:00:06]} 85. Kf4 {[%clk 0:00:08]}  b4 {[%clk 0:00:07]} 86. Ra8 {[%clk 0:00:08]}  Rc5 {[%clk 0:00:07]} 87. Rh8 {[%clk 0:00:09]}  a4 {[%clk 0:00:07]} 88. Rb8 {[%clk 0:00:09]}  b3 {[%clk 0:00:07]} 89. Ke4 {[%clk 0:00:10]}  Re5+ {[%clk 0:00:06]} 90. Kd3 {[%clk 0:00:10]}  h4 {[%clk 0:00:07]} 91. Nf3 {[%clk 0:00:10]}  Rh5 {[%clk 0:00:07]} 92. Rg8 {[%clk 0:00:07]}  h3 {[%clk 0:00:07]} 93. Rg7+ {[%clk 0:00:08]}  Kd8 {[%clk 0:00:07]} 94. Rg8+ {[%clk 0:00:08]}  Kc7 {[%clk 0:00:07]} 95. Rh8 {[%clk 0:00:09]}  Rxh8 {[%clk 0:00:06]} 0-1


[Site "https://www.chess.com"]